[Event "*** Titled Tuesday Blitz"]
[Site "Chess.com"]
[Date "2020.05.05"]
[Round "5"]
[White "czasnaszachy"]
[Black "picturesquecheck"]
[Result "0-1"]
[WhiteElo "2286"]
[BlackElo "2087"]
[TimeControl "180+1"]
[EndTime "10:57:13 PDT"]
[Termination "picturesquecheck won on time"]

1. d4 {[%clk 0:02:59.8]} 1... Nf6 {[%clk 0:02:58.1]} 2. c4 {[%clk 0:02:59.5]}
2... e6 {[%clk 0:02:51.1]} 3. Nc3 {[%clk 0:02:56.9]} 3... d5 {[%clk 0:02:50.8]}
4. Nf3 {[%clk 0:02:53.7]} 4... dxc4 {[%clk 0:02:49.4]} 5. e3 {[%clk 0:02:49.4]}
5... a6 {[%clk 0:02:45]} 6. Bxc4 {[%clk 0:02:48.7]} 6... b5 {[%clk 0:02:44.9]}
7. Be2 {[%clk 0:02:46.5]} 7... c5 {[%clk 0:02:43.5]} 8. O-O {[%clk 0:02:44.8]}
8... Bb7 {[%clk 0:02:39.7]} 9. b3 {[%clk 0:02:40.6]} 9... Be7 {[%clk 0:02:38.1]}
10. Bb2 {[%clk 0:02:40.3]} 10... O-O {[%clk 0:02:30.1]} 11. Qc2 {[%clk
0:02:30.5]} 11... Nbd7 {[%clk 0:02:27.5]} 12. Rac1 {[%clk 0:02:07.7]} 12... Rc8
{[%clk 0:02:23]} 13. Qb1 {[%clk 0:02:03.6]} 13... Qb6 {[%clk 0:02:16.2]} 14.
Rfd1 {[%clk 0:01:53.8]} 14... Rfd8 {[%clk 0:02:14.6]} 15. dxc5 {[%clk
0:01:15.5]} 15... Nxc5 {[%clk 0:02:13.7]} 16. Rxd8+ {[%clk 0:01:06.9]} 16...
Rxd8 {[%clk 0:02:13.6]} 17. Nd4 {[%clk 0:01:03.6]} 17... g6 {[%clk 0:02:09.7]}
18. Bf3 {[%clk 0:00:46]} 18... e5 {[%clk 0:02:09.8]} 19. Bxb7 {[%clk 0:00:36.5]}
19... Qxb7 {[%clk 0:02:09.3]} 20. Nf3 {[%clk 0:00:33.2]} 20... e4 {[%clk
0:02:08.6]} 21. Nd4 {[%clk 0:00:32.9]} 21... Nd3 {[%clk 0:02:08.3]} 22. Rc2
{[%clk 0:00:28.1]} 22... Nxb2 {[%clk 0:02:07.8]} 23. Qxb2 {[%clk 0:00:27.6]}
23... Ng4 {[%clk 0:01:48]} 24. Nce2 {[%clk 0:00:26.4]} 24... Bf6 {[%clk
0:01:39.4]} 25. h3 {[%clk 0:00:25.3]} 25... Ne5 {[%clk 0:01:38.5]} 26. Qc3
{[%clk 0:00:14.7]} 26... Bg7 {[%clk 0:01:26.1]} 27. Qc7 {[%clk 0:00:14.2]} 27...
Qxc7 {[%clk 0:01:10.4]} 28. Rxc7 {[%clk 0:00:15.1]} 28... f5 {[%clk 0:01:02.5]}
29. Ra7 {[%clk 0:00:14.3]} 29... Rd6 {[%clk 0:01:00.6]} 30. Nf4 {[%clk
0:00:14.1]} 30... Nd3 {[%clk 0:00:49.7]} 31. Nfe6 {[%clk 0:00:14.1]} 31... Bxd4
{[%clk 0:00:41.7]} 32. Nxd4 {[%clk 0:00:10.6]} 32... f4 {[%clk 0:00:40.8]} 33.
Nc2 {[%clk 0:00:07.2]} 33... Nc1 {[%clk 0:00:35]} 34. Nb4 {[%clk 0:00:06.9]}
34... Rd1+ {[%clk 0:00:33.4]} 35. Kh2 {[%clk 0:00:06.6]} 35... Rd2 {[%clk
0:00:28.1]} 36. Rxa6 {[%clk 0:00:05.8]} 36... Rxf2 {[%clk 0:00:25.6]} 37. exf4
{[%clk 0:00:04.9]} 37... e3 {[%clk 0:00:25.8]} 38. Re6 {[%clk 0:00:04.2]} 38...
e2 {[%clk 0:00:25.9]} 39. Nc2 {[%clk 0:00:02.5]} 39... Rxf4 {[%clk 0:00:24.5]}
40. Kg3 {[%clk 0:00:01.6]} 40... Rf1 {[%clk 0:00:22.9]} 0-1

[Event "*** Titled Tuesday Blitz"]
[Site "Chess.com"]
[Date "2020.05.05"]
[Round "5"]
[White "Igor_Lysyj"]
[Black "GOGIEFF"]
[Result "0-1"]
[WhiteElo "2772"]
[BlackElo "3002"]
[TimeControl "180+1"]
[EndTime "10:57:14 PDT"]
[Termination "GOGIEFF won by resignation"]

1. d4 {[%clk 0:03:00]} 1... Nf6 {[%clk 0:02:59.4]} 2. c4 {[%clk 0:02:59.8]} 2...
e6 {[%clk 0:02:59.7]} 3. Nf3 {[%clk 0:02:59.6]} 3... d5 {[%clk 0:02:59.9]} 4. g3
{[%clk 0:02:59]} 4... Bb4+ {[%clk 0:02:57.7]} 5. Bd2 {[%clk 0:02:58.4]} 5... Be7
{[%clk 0:02:56.9]} 6. Bg2 {[%clk 0:02:57.5]} 6... O-O {[%clk 0:02:56.9]} 7. O-O
{[%clk 0:02:56.7]} 7... Nbd7 {[%clk 0:02:56.4]} 8. Qc2 {[%clk 0:02:56.3]} 8...
c6 {[%clk 0:02:56.7]} 9. a3 {[%clk 0:02:56.1]} 9... b6 {[%clk 0:02:55.4]} 10.
cxd5 {[%clk 0:02:55.3]} 10... cxd5 {[%clk 0:02:54.5]} 11. Rc1 {[%clk 0:02:55.2]}
11... Bb7 {[%clk 0:02:43.7]} 12. Qd1 {[%clk 0:02:54.6]} 12... Ne4 {[%clk
0:02:40.6]} 13. Bb4 {[%clk 0:02:51.7]} 13... Nd6 {[%clk 0:02:37.3]} 14. Nbd2
{[%clk 0:02:43.8]} 14... a5 {[%clk 0:02:33.6]} 15. Bxd6 {[%clk 0:02:43.1]} 15...
Bxd6 {[%clk 0:02:33]} 16. e3 {[%clk 0:02:41.6]} 16... b5 {[%clk 0:02:27.1]} 17.
Bf1 {[%clk 0:02:38.4]} 17... Qb6 {[%clk 0:02:25.7]} 18. Qb3 {[%clk 0:02:30.6]}
18... b4 {[%clk 0:02:16.5]} 19. a4 {[%clk 0:02:28.7]} 19... Rac8 {[%clk
0:02:02.4]} 20. Qd3 {[%clk 0:02:23.8]} 20... Rxc1 {[%clk 0:01:31.6]} 21. Rxc1
{[%clk 0:02:23.1]} 21... Bc6 {[%clk 0:01:26.2]} 22. Qa6 {[%clk 0:02:06]} 22...
Bb7 {[%clk 0:01:03.9]} 23. Qb5 {[%clk 0:01:48.6]} 23... Rd8 {[%clk 0:01:02.1]}
24. Nb3 {[%clk 0:01:45.6]} 24... Bc7 {[%clk 0:00:53.5]} 25. Qxb6 {[%clk
0:01:09.7]} 25... Bxb6 {[%clk 0:00:53.1]} 26. Bb5 {[%clk 0:01:07.9]} 26... f6
{[%clk 0:00:48.3]} 27. Ne1 {[%clk 0:01:02.7]} 27... Nb8 {[%clk 0:00:39.4]} 28.
Nd3 {[%clk 0:00:59.6]} 28... Kf7 {[%clk 0:00:39.9]} 29. Ndc5 {[%clk 0:00:56.1]}
29... Bc8 {[%clk 0:00:40]} 30. Bd3 {[%clk 0:00:41.3]} 30... h6 {[%clk
0:00:38.3]} 31. h4 {[%clk 0:00:40.6]} 31... Ke7 {[%clk 0:00:38.3]} 32. Bb5
{[%clk 0:00:36.4]} 32... e5 {[%clk 0:00:37.4]} 33. Nd3 {[%clk 0:00:34.7]} 33...
Kd6 {[%clk 0:00:34.8]} 34. f4 {[%clk 0:00:25.5]} 34... exf4 {[%clk 0:00:32]} 35.
Nxf4 {[%clk 0:00:22.6]} 35... Bd7 {[%clk 0:00:27.1]} 36. Bxd7 {[%clk 0:00:21.1]}
36... Nxd7 {[%clk 0:00:26]} 37. h5 {[%clk 0:00:21.1]} 37... f5 {[%clk
0:00:24.6]} 38. Nd2 {[%clk 0:00:19.8]} 38... Re8 {[%clk 0:00:24.2]} 39. Kf2
{[%clk 0:00:19.2]} 39... Nf6 {[%clk 0:00:24.6]} 40. Nf3 {[%clk 0:00:19]} 40...
Ng4+ {[%clk 0:00:24.3]} 41. Kg1 {[%clk 0:00:18.1]} 41... Rxe3 {[%clk 0:00:23.5]}
42. Kg2 {[%clk 0:00:18.2]} 42... Rb3 {[%clk 0:00:23.1]} 43. Nh4 {[%clk
0:00:18.1]} 43... Rxb2+ {[%clk 0:00:21.8]} 44. Kf1 {[%clk 0:00:18.1]} 44... Ne3+
{[%clk 0:00:20.5]} 45. Ke1 {[%clk 0:00:18.1]} 45... Bxd4 {[%clk 0:00:21.4]} 46.
Nd3 {[%clk 0:00:17.7]} 46... Bc3+ {[%clk 0:00:21.5]} 47. Rxc3 {[%clk 0:00:17.2]}
47... bxc3 {[%clk 0:00:22.4]} 0-1

[Event "*** Titled Tuesday Blitz"]
[Site "Chess.com"]
[Date "2020.05.05"]
[Round "5"]
[White "Nafania1"]
[Black "almatyonelove"]
[Result "1-0"]
[WhiteElo "2391"]
[BlackElo "2558"]
[TimeControl "180+1"]
[EndTime "10:57:14 PDT"]
[Termination "Nafania1 won by resignation"]

1. e4 {[%clk 0:03:00.9]} 1... e5 {[%clk 0:02:59]} 2. Nf3 {[%clk 0:03:00.7]} 2...
Nc6 {[%clk 0:02:56.3]} 3. Bb5 {[%clk 0:03:00.5]} 3... a6 {[%clk 0:02:55.9]} 4.
Ba4 {[%clk 0:03:00.4]} 4... Nf6 {[%clk 0:02:56.3]} 5. O-O {[%clk 0:02:59.8]}
5... Be7 {[%clk 0:02:55.6]} 6. Re1 {[%clk 0:02:59]} 6... b5 {[%clk 0:02:53.7]}
7. Bb3 {[%clk 0:02:59.2]} 7... d6 {[%clk 0:02:53.4]} 8. c3 {[%clk 0:02:59]} 8...
O-O {[%clk 0:02:53]} 9. d4 {[%clk 0:02:56.1]} 9... Bg4 {[%clk 0:02:51.5]} 10.
Be3 {[%clk 0:02:54.9]} 10... exd4 {[%clk 0:02:42.9]} 11. cxd4 {[%clk 0:02:54.9]}
11... Na5 {[%clk 0:02:42.8]} 12. h3 {[%clk 0:02:47.5]} 12... Bh5 {[%clk
0:02:38.5]} 13. Nbd2 {[%clk 0:02:46.9]} 13... c5 {[%clk 0:02:36.3]} 14. Bc2
{[%clk 0:02:31.5]} 14... Nc6 {[%clk 0:02:24.4]} 15. g4 {[%clk 0:02:18]} 15...
Bg6 {[%clk 0:02:22.7]} 16. d5 {[%clk 0:02:16.7]} 16... Nb4 {[%clk 0:02:07.5]}
17. Bb1 {[%clk 0:02:13.6]} 17... a5 {[%clk 0:02:07.1]} 18. a3 {[%clk 0:02:11.7]}
18... Na6 {[%clk 0:02:06.6]} 19. a4 {[%clk 0:02:07]} 19... b4 {[%clk 0:02:01]}
20. Bf4 {[%clk 0:01:31.8]} 20... h5 {[%clk 0:01:50.1]} 21. Nh2 {[%clk
0:01:29.6]} 21... hxg4 {[%clk 0:01:49]} 22. hxg4 {[%clk 0:01:29.4]} 22... Nc7
{[%clk 0:01:30.2]} 23. Nc4 {[%clk 0:01:27.3]} 23... Ra6 {[%clk 0:01:28.4]} 24.
b3 {[%clk 0:01:27.4]} 24... Nd7 {[%clk 0:01:27.2]} 25. Nf3 {[%clk 0:01:20.6]}
25... Bf6 {[%clk 0:01:19.8]} 26. Ra2 {[%clk 0:01:20.2]} 26... Be5 {[%clk
0:01:07.5]} 27. Nfxe5 {[%clk 0:01:14.8]} 27... dxe5 {[%clk 0:01:05.5]} 28. Nxe5
{[%clk 0:01:09.4]} 28... Re8 {[%clk 0:00:55.8]} 29. Nc6 {[%clk 0:01:08]} 29...
Qh4 {[%clk 0:00:41]} 30. Bg3 {[%clk 0:01:07.7]} 30... Qh3 {[%clk 0:00:39.5]} 31.
Bxc7 {[%clk 0:01:02.9]} 31... Nf6 {[%clk 0:00:39.3]} 32. Re3 {[%clk 0:00:58.3]}
32... Qh4 {[%clk 0:00:35.9]} 33. Bg3 {[%clk 0:00:57.6]} 33... Qh7 {[%clk
0:00:33.8]} 34. f3 {[%clk 0:00:37.6]} 34... Qh6 {[%clk 0:00:28]} 35. Rae2 {[%clk
0:00:32.2]} 35... Qg5 {[%clk 0:00:27.1]} 36. Kg2 {[%clk 0:00:29.5]} 36... Nd7
{[%clk 0:00:19.2]} 37. Qh1 {[%clk 0:00:27.8]} 37... f6 {[%clk 0:00:18.5]} 38.
Qh4 {[%clk 0:00:27.2]} 38... Qxh4 {[%clk 0:00:10.4]} 39. Bxh4 {[%clk 0:00:27.4]}
39... Kf7 {[%clk 0:00:08.4]} 40. Bd3 {[%clk 0:00:26.7]} 40... Ne5 {[%clk
0:00:03.2]} 41. Nxe5+ {[%clk 0:00:25.8]} 41... Rxe5 {[%clk 0:00:04.1]} 42. Bxa6
{[%clk 0:00:25.9]} 1-0

[Event "*** Titled Tuesday Blitz"]
[Site "Chess.com"]
[Date "2020.05.05"]
[Round "5"]
[White "giantslayer83"]
[Black "vladislavkovalev"]
[Result "0-1"]
[WhiteElo "2701"]
[BlackElo "2882"]
[TimeControl "180+1"]
[EndTime "10:57:17 PDT"]
[Termination "vladislavkovalev won by resignation"]

1. d4 {[%clk 0:03:00.9]} 1... Nf6 {[%clk 0:03:00.1]} 2. c4 {[%clk 0:03:00.2]}
2... g6 {[%clk 0:03:00.7]} 3. Nc3 {[%clk 0:02:59.8]} 3... Bg7 {[%clk 0:03:01.3]}
4. e4 {[%clk 0:02:58.9]} 4... d6 {[%clk 0:03:02]} 5. Nf3 {[%clk 0:02:54.8]} 5...
O-O {[%clk 0:03:02.6]} 6. h3 {[%clk 0:02:55.2]} 6... c5 {[%clk 0:02:59.8]} 7. d5
{[%clk 0:02:53.8]} 7... e6 {[%clk 0:02:59.9]} 8. Bd3 {[%clk 0:02:50.6]} 8...
exd5 {[%clk 0:03:00]} 9. exd5 {[%clk 0:02:51.5]} 9... Qe7+ {[%clk 0:02:58.9]}
10. Be3 {[%clk 0:02:49.7]} 10... Bh6 {[%clk 0:02:59.1]} 11. Qd2 {[%clk
0:02:24.5]} 11... Bxe3 {[%clk 0:02:49.5]} 12. fxe3 {[%clk 0:02:20.3]} 12... Nbd7
{[%clk 0:02:49.9]} 13. O-O {[%clk 0:02:19.6]} 13... Ne5 {[%clk 0:02:42.3]} 14.
Nxe5 {[%clk 0:02:15.3]} 14... Qxe5 {[%clk 0:02:41.5]} 15. Rf3 {[%clk 0:02:15.3]}
15... Nd7 {[%clk 0:02:38.7]} 16. Raf1 {[%clk 0:02:14]} 16... Qe7 {[%clk
0:02:38.2]} 17. e4 {[%clk 0:01:57.5]} 17... Ne5 {[%clk 0:02:24]} 18. Rg3 {[%clk
0:01:16]} 18... Bd7 {[%clk 0:02:16.9]} 19. Qh6 {[%clk 0:01:14.4]} 19... f6
{[%clk 0:02:14]} 20. Be2 {[%clk 0:01:12]} 20... a6 {[%clk 0:02:13.8]} 21. h4
{[%clk 0:01:10.5]} 21... b5 {[%clk 0:02:10]} 22. b3 {[%clk 0:01:07.6]} 22... b4
{[%clk 0:01:26.7]} 23. Nd1 {[%clk 0:01:07.2]} 23... a5 {[%clk 0:01:27.3]} 24.
Ne3 {[%clk 0:01:06.7]} 24... Qg7 {[%clk 0:01:25.2]} 25. Qf4 {[%clk 0:01:03.8]}
25... f5 {[%clk 0:01:21.1]} 26. exf5 {[%clk 0:01:02.5]} 26... Bxf5 {[%clk
0:01:22]} 27. Nxf5 {[%clk 0:01:02.4]} 27... Rxf5 {[%clk 0:01:17]} 28. Qxf5
{[%clk 0:01:02.6]} 28... gxf5 {[%clk 0:01:17.8]} 29. Rxg7+ {[%clk 0:01:02.7]}
29... Kxg7 {[%clk 0:01:18.7]} 30. Rxf5 {[%clk 0:01:02.9]} 30... a4 {[%clk
0:01:19.6]} 31. g4 {[%clk 0:00:53.7]} 31... axb3 {[%clk 0:01:16.3]} 32. axb3
{[%clk 0:00:54.6]} 32... Ra2 {[%clk 0:01:16.9]} 33. Kf1 {[%clk 0:00:51.1]} 33...
Rb2 {[%clk 0:01:14.8]} 34. g5 {[%clk 0:00:50.9]} 34... Rxb3 {[%clk 0:01:11.8]}
35. Rf6 {[%clk 0:00:51.4]} 35... Rh3 {[%clk 0:00:58.7]} 36. h5 {[%clk
0:00:47.4]} 36... b3 {[%clk 0:00:45.1]} 37. h6+ {[%clk 0:00:47]} 37... Rxh6
{[%clk 0:00:45.7]} 38. Rxh6 {[%clk 0:00:43.2]} 38... b2 {[%clk 0:00:45.8]} 39.
Rxd6 {[%clk 0:00:34.3]} 39... b1=Q+ {[%clk 0:00:45.2]} 40. Kf2 {[%clk
0:00:33.9]} 40... Qf5+ {[%clk 0:00:43.3]} 41. Ke1 {[%clk 0:00:31.4]} 41... Qxg5
{[%clk 0:00:39]} 42. Re6 {[%clk 0:00:30]} 42... Qe3 {[%clk 0:00:38.8]} 43. Kf1
{[%clk 0:00:26.7]} 43... Qf4+ {[%clk 0:00:38.9]} 44. Ke1 {[%clk 0:00:26.1]}
44... Nxc4 {[%clk 0:00:38]} 45. Bxc4 {[%clk 0:00:25.1]} 45... Qxc4 {[%clk
0:00:38.9]} 46. Re7+ {[%clk 0:00:25.4]} 46... Kg6 {[%clk 0:00:34.7]} 47. d6
{[%clk 0:00:26.3]} 47... Qc3+ {[%clk 0:00:27.5]} 48. Ke2 {[%clk 0:00:25.4]}
48... Qf6 {[%clk 0:00:28]} 49. Re4 {[%clk 0:00:18.1]} 49... Qxd6 {[%clk
0:00:27.8]} 0-1

[Event "*** Titled Tuesday Blitz"]
[Site "Chess.com"]
[Date "2020.05.05"]
[Round "5"]
[White "ftorodent"]
[Black "Alopekos"]
[Result "0-1"]
[WhiteElo "2659"]
[BlackElo "2457"]
[TimeControl "180+1"]
[EndTime "10:57:17 PDT"]
[Termination "Alopekos won by checkmate"]

1. d4 {[%clk 0:03:00.9]} 1... Nf6 {[%clk 0:02:59.1]} 2. c4 {[%clk 0:03:00.6]}
2... e6 {[%clk 0:02:58.7]} 3. Nf3 {[%clk 0:02:59.9]} 3... d5 {[%clk 0:02:58.9]}
4. Nc3 {[%clk 0:02:59.2]} 4... c5 {[%clk 0:02:55.3]} 5. e3 {[%clk 0:02:50.3]}
5... Nc6 {[%clk 0:02:54.5]} 6. a3 {[%clk 0:02:50.3]} 6... a6 {[%clk 0:02:55]} 7.
cxd5 {[%clk 0:02:43.8]} 7... exd5 {[%clk 0:02:39.3]} 8. Be2 {[%clk 0:02:40.2]}
8... Be6 {[%clk 0:02:11.3]} 9. O-O {[%clk 0:02:38.1]} 9... Rc8 {[%clk
0:02:09.6]} 10. Ne5 {[%clk 0:02:28.7]} 10... cxd4 {[%clk 0:02:00.9]} 11. exd4
{[%clk 0:02:21.1]} 11... Bd6 {[%clk 0:01:49.1]} 12. f4 {[%clk 0:02:01.2]} 12...
Nxd4 {[%clk 0:01:45.8]} 13. Bd3 {[%clk 0:01:43.9]} 13... O-O {[%clk 0:01:14.6]}
14. Be3 {[%clk 0:01:36.7]} 14... Nf5 {[%clk 0:01:07.6]} 15. Bf2 {[%clk
0:01:26.3]} 15... Bc5 {[%clk 0:00:53.7]} 16. Bxc5 {[%clk 0:01:19.8]} 16... Rxc5
{[%clk 0:00:54.6]} 17. Bxf5 {[%clk 0:01:10.8]} 17... Bxf5 {[%clk 0:00:53.6]} 18.
Qd4 {[%clk 0:01:11.3]} 18... Qc7 {[%clk 0:00:19.5]} 19. Rad1 {[%clk 0:01:05.5]}
19... Be4 {[%clk 0:00:11.8]} 20. Rfe1 {[%clk 0:00:59.7]} 20... h6 {[%clk
0:00:11.6]} 21. Re3 {[%clk 0:00:59.2]} 21... Rc8 {[%clk 0:00:09.2]} 22. g4
{[%clk 0:00:51.4]} 22... Ne8 {[%clk 0:00:03.3]} 23. Nxe4 {[%clk 0:00:23.7]}
23... dxe4 {[%clk 0:00:03.5]} 24. Rxe4 {[%clk 0:00:23.1]} 24... Rc1 {[%clk
0:00:03.3]} 25. Ree1 {[%clk 0:00:22.5]} 25... Rxd1 {[%clk 0:00:02.6]} 26. Rxd1
{[%clk 0:00:22.6]} 26... Nf6 {[%clk 0:00:03]} 27. g5 {[%clk 0:00:19.1]} 27...
hxg5 {[%clk 0:00:03.9]} 28. fxg5 {[%clk 0:00:19.2]} 28... Re8 {[%clk 0:00:04.8]}
29. Nf3 {[%clk 0:00:11.9]} 29... Re4 {[%clk 0:00:04.1]} 30. Qd3 {[%clk
0:00:10.1]} 30... Rg4+ {[%clk 0:00:03.7]} 31. Kh1 {[%clk 0:00:09]} 31... Ne4
{[%clk 0:00:04]} 32. Qe3 {[%clk 0:00:04.9]} 32... Qf4 {[%clk 0:00:02.7]} 33.
Rd8+ {[%clk 0:00:01.3]} 33... Kh7 {[%clk 0:00:02.9]} 34. Qxf4 {[%clk 0:00:02]}
34... Rxf4 {[%clk 0:00:03.4]} 35. Kg2 {[%clk 0:00:02.8]} 35... Rg4+ {[%clk
0:00:03.8]} 36. Kh3 {[%clk 0:00:02.8]} 36... Nf2# {[%clk 0:00:03.9]} 0-1

[Event "*** Titled Tuesday Blitz"]
[Site "Chess.com"]
[Date "2020.05.05"]
[Round "5"]
[White "Grandelicious"]
[Black "ezkybel"]
[Result "1/2-1/2"]
[WhiteElo "2735"]
[BlackElo "2451"]
[TimeControl "180+1"]
[EndTime "10:57:17 PDT"]
[Termination "Game drawn by repetition"]

1. Nf3 {[%clk 0:03:00.9]} 1... Nf6 {[%clk 0:02:54.4]} 2. g3 {[%clk 0:03:01]}
2... g6 {[%clk 0:02:54.6]} 3. b3 {[%clk 0:02:59.9]} 3... Bg7 {[%clk 0:02:54.9]}
4. Bb2 {[%clk 0:03:00.5]} 4... O-O {[%clk 0:02:54.5]} 5. Bg2 {[%clk 0:03:00.8]}
5... a5 {[%clk 0:02:53.3]} 6. O-O {[%clk 0:02:56.7]} 6... a4 {[%clk 0:02:51.1]}
7. b4 {[%clk 0:02:55.9]} 7... d6 {[%clk 0:02:20.3]} 8. c4 {[%clk 0:02:49.3]}
8... e5 {[%clk 0:02:18.5]} 9. d3 {[%clk 0:02:41.9]} 9... Re8 {[%clk 0:02:17.2]}
10. a3 {[%clk 0:02:36.8]} 10... e4 {[%clk 0:02:16.4]} 11. dxe4 {[%clk
0:02:36.4]} 11... Nxe4 {[%clk 0:02:16.9]} 12. Bxg7 {[%clk 0:02:37.3]} 12... Kxg7
{[%clk 0:02:17.1]} 13. Nfd2 {[%clk 0:02:21.2]} 13... Qf6 {[%clk 0:02:04.6]} 14.
Ra2 {[%clk 0:02:11]} 14... Nc3 {[%clk 0:01:41.1]} 15. Nxc3 {[%clk 0:02:08.6]}
15... Qxc3 {[%clk 0:01:41.2]} 16. Ne4 {[%clk 0:02:01.7]} 16... Qe5 {[%clk
0:01:39.6]} 17. Rd2 {[%clk 0:01:46.6]} 17... Nc6 {[%clk 0:01:38.8]} 18. Rd5
{[%clk 0:01:42.1]} 18... Qe7 {[%clk 0:01:37.5]} 19. Qa1+ {[%clk 0:01:36.1]}
19... f6 {[%clk 0:01:35.2]} 20. c5 {[%clk 0:01:29.4]} 20... dxc5 {[%clk
0:01:22.9]} 21. Rxc5 {[%clk 0:01:27.1]} 21... Bf5 {[%clk 0:01:18.6]} 22. Nc3
{[%clk 0:01:26]} 22... Rad8 {[%clk 0:01:17.3]} 23. Nd5 {[%clk 0:01:19.2]} 23...
Qd6 {[%clk 0:01:13.2]} 24. Rfc1 {[%clk 0:01:04.6]} 24... Rd7 {[%clk 0:00:51.1]}
25. e3 {[%clk 0:00:56.9]} 25... h5 {[%clk 0:00:48.6]} 26. Qc3 {[%clk 0:00:52.9]}
26... h4 {[%clk 0:00:44.1]} 27. b5 {[%clk 0:00:52.4]} 27... Ne5 {[%clk
0:00:43.1]} 28. Rxc7 {[%clk 0:00:50.9]} 28... h3 {[%clk 0:00:41.4]} 29. Bh1
{[%clk 0:00:50.5]} 29... Rd8 {[%clk 0:00:39.9]} 30. Rxd7+ {[%clk 0:00:45.6]}
30... Rxd7 {[%clk 0:00:39]} 31. e4 {[%clk 0:00:45.4]} 31... Be6 {[%clk
0:00:35.3]} 32. f4 {[%clk 0:00:39.7]} 32... Ng4 {[%clk 0:00:20]} 33. Bf3 {[%clk
0:00:35.8]} 33... Bxd5 {[%clk 0:00:19.6]} 34. exd5 {[%clk 0:00:36.7]} 34... Qb6+
{[%clk 0:00:18.4]} 35. Qc5 {[%clk 0:00:37.2]} 35... Qxc5+ {[%clk 0:00:10.2]} 36.
Rxc5 {[%clk 0:00:38.1]} 36... f5 {[%clk 0:00:10.1]} 37. b6 {[%clk 0:00:35.9]}
37... Kf6 {[%clk 0:00:10.3]} 38. Rc7 {[%clk 0:00:31.7]} 38... Ke7 {[%clk
0:00:09.9]} 39. Bxg4 {[%clk 0:00:28]} 39... fxg4 {[%clk 0:00:09.8]} 40. Kf2
{[%clk 0:00:28.2]} 40... Rxc7 {[%clk 0:00:08.6]} 41. bxc7 {[%clk 0:00:28.3]}
41... Kd7 {[%clk 0:00:08.5]} 42. d6 {[%clk 0:00:28.3]} 42... b5 {[%clk
0:00:08.2]} 43. Ke3 {[%clk 0:00:28.6]} 43... b4 {[%clk 0:00:08.2]} 44. Kd3
{[%clk 0:00:27.4]} 44... b3 {[%clk 0:00:08]} 45. Kc3 {[%clk 0:00:27.6]} 45...
Kc8 {[%clk 0:00:08]} 46. Kb2 {[%clk 0:00:27.6]} 46... Kd7 {[%clk 0:00:08.2]} 47.
Kc3 {[%clk 0:00:28.1]} 47... Kc8 {[%clk 0:00:08.6]} 48. Kb2 {[%clk 0:00:28.1]}
48... Kd7 {[%clk 0:00:09.1]} 49. Kb1 {[%clk 0:00:28.5]} 49... Kc8 {[%clk
0:00:09.4]} 50. Kb2 {[%clk 0:00:28.4]} 1/2-1/2

[Event "*** Titled Tuesday Blitz"]
[Site "Chess.com"]
[Date "2020.05.05"]
[Round "5"]
[White "heyiampotato"]
[Black "Caisachess"]
[Result "1-0"]
[WhiteElo "2536"]
[BlackElo "2334"]
[TimeControl "180+1"]
[EndTime "10:57:18 PDT"]
[Termination "heyiampotato won by resignation"]

1. d4 {[%clk 0:03:00.9]} 1... Nf6 {[%clk 0:02:58.9]} 2. Nf3 {[%clk 0:03:01.3]}
2... e6 {[%clk 0:02:58.8]} 3. c4 {[%clk 0:03:01.7]} 3... d5 {[%clk 0:02:54.9]}
4. Nc3 {[%clk 0:03:01.9]} 4... c5 {[%clk 0:02:54.6]} 5. e3 {[%clk 0:02:57.8]}
5... cxd4 {[%clk 0:02:52.8]} 6. exd4 {[%clk 0:02:58.1]} 6... Bb4 {[%clk
0:02:52.3]} 7. Bd3 {[%clk 0:02:53.9]} 7... dxc4 {[%clk 0:02:51.7]} 8. Bxc4
{[%clk 0:02:54.3]} 8... O-O {[%clk 0:02:51]} 9. O-O {[%clk 0:02:53.9]} 9... h6
{[%clk 0:02:50.9]} 10. a3 {[%clk 0:02:49.3]} 10... Bd6 {[%clk 0:02:43.9]} 11.
Qe2 {[%clk 0:02:40]} 11... a6 {[%clk 0:02:42.5]} 12. a4 {[%clk 0:02:38.1]} 12...
b6 {[%clk 0:02:40.6]} 13. Be3 {[%clk 0:02:33.4]} 13... Bb7 {[%clk 0:02:39.9]}
14. Rad1 {[%clk 0:02:33.1]} 14... Qc7 {[%clk 0:02:33.8]} 15. Rc1 {[%clk
0:02:09]} 15... Nc6 {[%clk 0:02:08.7]} 16. Rfd1 {[%clk 0:01:51.3]} 16... Qe7
{[%clk 0:01:40.6]} 17. h3 {[%clk 0:01:20.2]} 17... Nb4 {[%clk 0:01:36.6]} 18.
Ne5 {[%clk 0:01:18.3]} 18... Rac8 {[%clk 0:01:34.4]} 19. Bf4 {[%clk 0:00:53.2]}
19... Rfd8 {[%clk 0:01:26.7]} 20. Bg3 {[%clk 0:00:50]} 20... Bb8 {[%clk
0:00:58.9]} 21. Bb3 {[%clk 0:00:36.6]} 21... Nbd5 {[%clk 0:00:57.2]} 22. Re1
{[%clk 0:00:33.4]} 22... Re8 {[%clk 0:00:53.4]} 23. Ba2 {[%clk 0:00:27.5]} 23...
Qb4 {[%clk 0:00:52.9]} 24. Qd2 {[%clk 0:00:17.6]} 24... Rcd8 {[%clk 0:00:45.9]}
25. Bb1 {[%clk 0:00:14.6]} 25... Ne7 {[%clk 0:00:36.8]} 26. Rcd1 {[%clk
0:00:11.3]} 26... Nf5 {[%clk 0:00:32.9]} 27. Bxf5 {[%clk 0:00:11.8]} 27... exf5
{[%clk 0:00:33.2]} 28. Bh4 {[%clk 0:00:12.6]} 28... Qd6 {[%clk 0:00:30.4]} 29.
Qe3 {[%clk 0:00:11.2]} 29... g5 {[%clk 0:00:29]} 30. Bxg5 {[%clk 0:00:11]} 30...
hxg5 {[%clk 0:00:28.6]} 31. Qxg5+ {[%clk 0:00:11.9]} 31... Kf8 {[%clk
0:00:29.1]} 32. Qxf5 {[%clk 0:00:10]} 32... Bc8 {[%clk 0:00:21.7]} 33. Qg5
{[%clk 0:00:09.5]} 33... Bb7 {[%clk 0:00:20.1]} 34. Qh6+ {[%clk 0:00:09.7]}
34... Kg8 {[%clk 0:00:20]} 35. Re3 {[%clk 0:00:10.3]} 35... Rxe5 {[%clk
0:00:10.5]} 36. dxe5 {[%clk 0:00:09.4]} 36... Qxd1+ {[%clk 0:00:10.2]} 37. Nxd1
{[%clk 0:00:10]} 37... Rxd1+ {[%clk 0:00:10.6]} 38. Kh2 {[%clk 0:00:10.9]} 38...
Rd5 {[%clk 0:00:05.9]} 39. Rg3+ {[%clk 0:00:09.2]} 1-0